fUSD/lending_fUSD_20250109
["ID","MTS","AMOUNT","RATE_DAILY","PERIOD"]
[348352878,1736461856512,-500.0,0.00010392,2]
[348352879,1736461856522,-500.0,0.00010392,2]
[348352880,1736461856531,-500.0,0.00010392,2]
[348352881,1736461856540,-500.0,0.00010392,2]
[348352882,1736461856550,-500.0,0.00010392,2]
[348352883,1736461856559,-1992.28,0.00010392,2]
[348352884,1736461856568,-702.54606497,0.00010397,2]
[348352885,1736461856578,-150.0,0.00010408,2]
[348352886,1736461856587,-300.81967421,0.0001041,2]
[348352887,1736461856596,-922.67,0.00010422,2]
[348352888,1736461856606,-150.0,0.00010441,2]
[348352889,1736461856615,-150.0,0.00010441,2]
[348352890,1736461856625,-150.0,0.00010441,2]
[348352891,1736461856634,-151.738,0.00010441,2]
[348352892,1736461856643,-150.0,0.00010441,2]
[348352893,1736461856653,-150.0,0.00010441,2]
[348352894,1736461856662,-150.0,0.00010441,2]
[348352895,1736461856671,-150.0,0.00010441,2]
[348352896,1736461856681,-250.0,0.00010441,2]
[348352897,1736461856690,-1000.0,0.0001046,2]
[348352898,1736461856700,-500.0,0.0001046,2]
[348352899,1736461856709,-150.0,0.00010469,2]
[348352900,1736461856720,-326.1314817,0.000105,2]
[348352901,1736461856730,-150.0,0.00010513,2]
[348352902,1736461856740,-922.58619535,0.00010521,2]
[348352903,1736461856750,-500.0,0.00010528,2]
[348352904,1736461856760,-300.81967421,0.00010541,2]
[348352905,1736461856770,-2791.09,0.00010547,2]
[348352906,1736461856779,-1648.39,0.00010547,2]
[348352907,1736461856788,-4591.02,0.00010547,2]
[348352908,1736461856798,-1174.41,0.00010547,2]
[348352909,1736461856807,-1198.9,0.00010547,2]
[348352910,1736461856816,-1870.03,0.00010547,2]
[348352911,1736461856825,-1868.89,0.00010547,2]
[348352912,1736461856835,-2027.75,0.00010547,2]
[348352913,1736461856844,-1892.75,0.00010547,2]
[348352914,1736461856854,-4315.65,0.00010547,2]
[348352915,1736461856863,-1894.66,0.00010547,2]
[348352916,1736461856872,-2749.56,0.00010547,2]
[348352917,1736461856881,-1749.35,0.00010547,2]
[348352918,1736461856895,-2228.34,0.00010547,2]
[348352919,1736461856904,-500.0,0.00010547,2]
[348352920,1736461856913,-1234.22,0.00010547,2]
[348352921,1736461856923,-2407.22304194,0.00010547,2]
[348352922,1736461856939,-206.56695806,0.00010547,2]
[348352923,1736461856948,-1038.44,0.00010547,2]
[348352924,1736461856957,-1226.29,0.00010547,2]
[348352925,1736461856965,-1217.49,0.00010547,2]
[348352926,1736461856975,-1591.3,0.00010547,2]
[348352927,1736461856984,-150.0,0.00010575,2]
[348352928,1736461856992,-978.7,0.00010658,2]
[348352929,1736461857001,-150.0,0.00010658,2]
[348352930,1736461857009,-150.0,0.00010658,2]
[348352931,1736461857018,-1451.2,0.00010662,2]
[348352932,1736461857028,-1258.06,0.00010662,2]
[348352933,1736461857038,-500.0,0.00010662,2]
[348352934,1736461857047,-902.25,0.00010662,2]
[348352935,1736461857056,-2667.74,0.00010662,2]
[348352936,1736461857066,-3583.13,0.00010662,2]
[348352937,1736461857075,-1930.58,0.00010662,2]
[348352938,1736461857085,-518.47,0.00010662,2]
[348352939,1736461857094,-1986.22,0.00010662,2]
[348352940,1736461857104,-1249.39,0.00010662,2]
[348352941,1736461857113,-1009.79,0.00010662,2]
[348352942,1736461857123,-500.0,0.00010662,2]
[348352943,1736461857133,-500.0,0.00010662,2]
[348352944,1736461857143,-500.0,0.00010662,2]
[348352945,1736461857152,-579.77,0.00010662,2]
[348352946,1736461857161,-500.63,0.00010662,2]
[348352947,1736461857171,-500.0,0.00010662,2]
[348352948,1736461857180,-2383.05,0.00010662,2]
[348352949,1736461857190,-500.0,0.00010662,2]
[348352950,1736461857200,-1079.38,0.00010662,2]
[348352951,1736461857210,-500.0,0.00010662,2]
[348352952,1736461857218,-1242.05,0.00010662,2]
[348352953,1736461857227,-500.0,0.00010663,2]
[348352954,1736461857236,-826.57,0.00010663,2]
[348352955,1736461857245,-228.1561588,0.00010663,2]
[348352956,1736461857254,-766.65,0.00010663,2]
[348352957,1736461857263,-500.0,0.00010663,2]
[348352958,1736461857271,-500.0,0.00010663,2]
[348352959,1736461857280,-965.6,0.00010663,2]
[348352960,1736461857288,-734.97,0.00010663,2]
[348352961,1736461857297,-787.41,0.00010663,2]
[348352962,1736461857307,-940.77,0.00010663,2]
[348352963,1736461857315,-537.4,0.00010663,2]
[348352964,1736461857324,-500.0,0.00010663,2]
[348352965,1736461857333,-500.0,0.00010663,2]
[348352966,1736461857341,-500.0,0.00010663,2]
[348352967,1736461857351,-500.0,0.00010663,2]
[348352968,1736461857362,-500.0,0.00010663,2]
[348352969,1736461857372,-500.0,0.00010663,2]
[348352970,1736461857381,-500.0,0.00010663,2]
[348352971,1736461857391,-500.0,0.00010663,2]
[348352972,1736461857400,-571.71,0.00010663,2]
[348352973,1736461857409,-737.87,0.00010663,2]
[348352974,1736461857418,-565.57,0.00010663,2]
[348352975,1736461857428,-500.0,0.00010663,2]
[348352976,1736461857438,-516.15,0.00010663,2]
[348352977,1736461857447,-934.18,0.00010663,2]
[348352978,1736461857457,-1267.12,0.00010663,2]
[348352979,1736461857467,-959.75,0.00010663,2]
[348352980,1736461857479,-500.0,0.00010663,2]
[348352981,1736461857488,-500.0,0.00010663,2]
[348352982,1736461857497,-500.0,0.00010663,2]
[348352983,1736461857507,-500.0,0.00010663,2]
[348352984,1736461857517,-500.0,0.00010663,2]
[348352985,1736461857526,-500.0,0.00010663,2]
[348352986,1736461857535,-500.0,0.00010663,2]
[348352987,1736461857544,-507.23,0.00010663,2]
[348352988,1736461857554,-500.0,0.00010663,2]
[348352989,1736461857563,-664.96,0.00010663,2]
[348352990,1736461857575,-500.0,0.00010663,2]
[348352991,1736461857589,-1030.96,0.00010663,2]
[348352992,1736461857601,-500.0,0.00010663,2]
[348352993,1736461857613,-500.0,0.00010663,2]
[348352994,1736461857625,-1062.09,0.00010663,2]
[348352995,1736461857639,-838.28,0.00010663,2]
[348352996,1736461857649,-559.47,0.00010663,2]
[348352997,1736461857660,-506.77,0.00010663,2]
[348352998,1736461857669,-782.41,0.00010663,2]
[348352999,1736461857679,-1044.54,0.00010663,2]
[348353000,1736461857691,-500.0,0.00010663,2]
[348353001,1736461857707,-500.0,0.00010663,2]
[348353002,1736461857721,-500.0,0.00010663,2]
[348353003,1736461857731,-1054.83,0.00010663,2]
[348353004,1736461857741,-770.42,0.00010663,2]
[348353005,1736461857753,-708.26,0.00010663,2]
[348353006,1736461857763,-1050.52,0.00010663,2]
[348353007,1736461857772,-500.0,0.00010663,2]
[348353008,1736461857782,-972.0,0.00010663,2]
[348353009,1736461857794,-535.34,0.00010663,2]
[348353010,1736461857812,-500.0,0.00010663,2]
[348353011,1736461857822,-1012.85,0.00010663,2]
[348353012,1736461857831,-500.0,0.00010663,2]
[348353013,1736461857841,-602.56,0.00010663,2]
[348353014,1736461857853,-910.14,0.00010663,2]
[348353015,1736461857862,-815.05,0.00010663,2]
[348353016,1736461857875,-611.14,0.00010663,2]
[348353017,1736461857888,-500.0,0.00010663,2]
[348353018,1736461857915,-1811.07,0.00010663,2]
[348353019,1736461857926,-500.0,0.00010663,2]
[348353020,1736461857938,-1807.5,0.00010663,2]
[348353021,1736461857950,-860.82,0.00010663,2]
[348353022,1736461857964,-952.19,0.00010663,2]
[348353023,1736461857974,-601.74,0.00010663,2]
[348353024,1736461857984,-500.0,0.00010663,2]
[348353025,1736461857995,-3535.24,0.00010663,2]
[348353026,1736461858007,-745.61,0.00010663,2]
[348353027,1736461858019,-4907.74,0.00010663,2]
[348353028,1736461858028,-1408.37,0.00010663,2]
[348353029,1736461858038,-633.33,0.00010663,2]
[348353030,1736461858049,-2746.14,0.00010663,2]
[348353031,1736461858060,-1101.89,0.00010663,2]
[348353032,1736461858072,-3236.51,0.00010663,2]
[348353033,1736461858085,-939.27,0.00010663,2]
[348353034,1736461858097,-561.92,0.00010663,2]
[348353035,1736461858111,-1000.67,0.00010663,2]
[348353036,1736461858122,-1745.75,0.00010663,2]
[348353037,1736461858132,-906.9,0.00010663,2]
[348353038,1736461858141,-5085.38,0.00010663,2]
[348353039,1736461858150,-3303.88,0.00010663,2]
[348353040,1736461858160,-500.0,0.00010663,2]
[348353041,1736461858170,-1024.79,0.00010663,2]
[348353042,1736461858180,-1174.07507,0.00010663,2]
[348353043,1736461858190,-1530.59,0.00010663,2]
[348353044,1736461858200,-1079.96,0.00010663,2]
[348353045,1736461858210,-677.89,0.00010663,2]
[348353046,1736461858221,-929.76,0.00010663,2]
[348353047,1736461858231,-1186.32,0.00010663,2]
[348353048,1736461858240,-544.13,0.00010663,2]
[348353049,1736461858249,-2317.13,0.00010663,2]
[348353050,1736461858258,-1217.891087,0.00010663,2]
[348353051,1736461858267,-928.6,0.00010663,2]
[348353052,1736461858276,-500.0,0.00010663,2]
[348353053,1736461858285,-1689.29,0.00010663,2]
[348353054,1736461858295,-954.79,0.00010663,2]
[348353055,1736461858304,-701.56,0.00010663,2]
[348353056,1736461858315,-500.0,0.00010663,2]
[348353057,1736461858326,-567.77,0.00010663,2]
[348353058,1736461858335,-3383.76,0.00010663,2]
[348353059,1736461858345,-1038.34,0.00010663,2]
[348353060,1736461858355,-635.65,0.00010664,2]
[348353061,1736461858365,-651.66,0.00010664,2]
[348353062,1736461858374,-500.0,0.00010664,2]
[348353063,1736461858383,-582.06,0.00010664,2]
[348353064,1736461858391,-500.0,0.00010664,2]
[348353065,1736461858400,-636.79,0.00010664,2]
[348353066,1736461858409,-739.04,0.00010664,2]
[348353067,1736461858418,-500.0,0.00010664,2]
[348353068,1736461858427,-500.0,0.00010664,2]
[348353069,1736461858436,-500.0,0.00010664,2]
[348353070,1736461858446,-518.92,0.00010664,2]
[348353071,1736461858455,-500.0,0.00010664,2]
[348353072,1736461858464,-500.0,0.00010664,2]
[348353073,1736461858475,-500.0,0.00010664,2]
[348353074,1736461858485,-507.34,0.00010664,2]
[348353075,1736461858494,-546.45,0.00010664,2]
[348353076,1736461858503,-500.0,0.00010664,2]
[348353077,1736461858513,-532.95,0.00010664,2]
[348353078,1736461858523,-698.1,0.00010664,2]
[348353079,1736461858531,-922.22,0.00010664,2]
[348353080,1736461858540,-500.0,0.00010664,2]
[348353081,1736461858549,-500.0,0.00010664,2]
[348353082,1736461858559,-983.14,0.00010664,2]
[348353083,1736461858568,-500.0,0.00010664,2]
[348353084,1736461858576,-500.0,0.00010664,2]
[348353085,1736461858585,-998.25,0.00010664,2]
[348353086,1736461858594,-650.36,0.00010664,2]
[348353087,1736461858602,-861.7,0.00010664,2]
[348353088,1736461858610,-500.0,0.00010664,2]
[348353089,1736461858619,-502.53,0.00010664,2]
[348353090,1736461858627,-658.83,0.00010664,2]
[348353091,1736461858637,-500.0,0.00010664,2]
[348353092,1736461858646,-869.99,0.00010664,2]
[348353093,1736461858654,-608.01,0.00010664,2]
[348353094,1736461858663,-500.0,0.00010664,2]
[348353095,1736461858672,-555.57,0.00010664,2]
[348353096,1736461858681,-551.61,0.00010664,2]
[348353097,1736461858690,-1649.42,0.00010664,2]
[348353098,1736461858699,-630.04,0.00010664,2]
[348353099,1736461858709,-583.03,0.00010664,2]
[348353100,1736461858718,-915.56,0.00010664,2]
[348353101,1736461858729,-500.0,0.00010664,2]
[348353102,1736461858739,-500.0,0.00010664,2]
[348353103,1736461858748,-690.73,0.00010664,2]
[348353104,1736461858758,-500.0,0.00010664,2]
[348353105,1736461858767,-240.02750494,0.00010664,2]
[348353106,1736461858777,-500.0,0.00010664,2]
[348353107,1736461858786,-500.0,0.00010664,2]
[348353108,1736461858796,-749.69,0.00010664,2]
[348353109,1736461858805,-982.25,0.00010664,2]
[348353110,1736461858815,-1032.02,0.00010664,2]
[348353111,1736461858824,-1765.96,0.00010664,2]
[348353112,1736461858834,-1177.31,0.00010664,2]
[348353113,1736461858844,-500.0,0.00010664,2]
[348353114,1736461858853,-500.0,0.00010664,2]
[348353115,1736461858862,-500.0,0.00010664,2]
[348353116,1736461858872,-4699.67,0.00010664,2]
[348353117,1736461858883,-500.0,0.00010664,2]
[348353118,1736461858893,-500.0,0.00010664,2]
[348353119,1736461858903,-500.0,0.00010664,2]
[348353120,1736461858912,-500.0,0.00010664,2]
[348353121,1736461858921,-739.58,0.00010664,2]
[348353122,1736461858931,-2002.59,0.00010664,2]
[348353123,1736461858940,-882.64,0.00010664,2]
[348353124,1736461858950,-900.57,0.00010664,2]
[348353125,1736461858959,-1165.13,0.00010664,2]
[348353126,1736461858969,-1516.99,0.00010664,2]
[348353127,1736461858978,-600.3,0.00010664,2]
[348353128,1736461858987,-511.09,0.00010664,2]
[348353129,1736461858996,-1538.48,0.00010664,2]
[348353130,1736461859005,-698.29,0.00010664,2]
[348353131,1736461859013,-1067.82,0.00010664,2]
[348353132,1736461859023,-500.0,0.00010664,2]
[348353133,1736461859031,-541.72,0.00010664,2]
[348353134,1736461859041,-3216.35,0.00010664,2]
[348353135,1736461859049,-668.04,0.00010664,2]
[348353136,1736461859058,-889.72,0.00010664,2]
[348353137,1736461859067,-695.66,0.00010664,2]
[348353138,1736461859076,-987.45,0.00010664,2]
[348353139,1736461859085,-2007.88,0.00010664,2]
[348353140,1736461859094,-645.68,0.00010664,2]
[348353141,1736461859103,-553.45,0.00010664,2]
[348353142,1736461859112,-500.0,0.00010665,2]
[348353143,1736461859121,-500.0,0.00010665,2]
[348353144,1736461859130,-547.13,0.00010665,2]
[348353145,1736461859139,-500.0,0.00010665,2]
[348353146,1736461859147,-558.46,0.00010665,2]
[348353147,1736461859156,-500.0,0.00010665,2]
[348353148,1736461859165,-500.0,0.00010665,2]
[348353149,1736461859175,-527.7399401,0.00010665,2]
[348353150,1736461859184,-500.0,0.00010665,2]
[348353151,1736461859193,-500.0,0.00010665,2]
[348353152,1736461859203,-500.0,0.00010665,2]
[348353153,1736461859212,-500.0,0.00010665,2]
[348353154,1736461859221,-500.0,0.00010665,2]
[348353155,1736461859229,-500.0,0.00010665,2]
[348353156,1736461859238,-500.0,0.00010665,2]
[348353157,1736461859247,-500.0,0.00010665,2]
[348353158,1736461859255,-500.0,0.00010665,2]
[348353159,1736461859264,-500.0,0.00010665,2]
[348353160,1736461859273,-500.0,0.00010665,2]
[348353161,1736461859281,-500.0,0.00010665,2]
[348353162,1736461859290,-500.0,0.00010665,2]
[348353163,1736461859300,-500.0,0.00010665,2]
[348353164,1736461859309,-500.0,0.00010665,2]
[348353165,1736461859319,-545.22076366,0.00010665,2]
[348353166,1736461859328,-213.71284835,0.00010665,2]
[348353167,1736461859337,-500.0,0.00010665,2]
[348353168,1736461859347,-500.0,0.00010665,2]
[348353169,1736461859356,-500.0,0.00010665,2]
[348353170,1736461859365,-500.0,0.00010665,2]
[348353171,1736461859375,-152.46,0.00010665,2]
[348353172,1736461859384,-500.0,0.00010665,2]
[348353173,1736461859393,-500.0,0.00010665,2]
[348353174,1736461859403,-500.0,0.00010665,2]
[348353175,1736461859412,-500.0,0.00010665,2]
[348353176,1736461859420,-500.0,0.00010665,2]
[348353177,1736461859429,-500.0,0.00010665,2]
[348353178,1736461859438,-500.0,0.00010665,2]
[348353179,1736461859447,-500.0,0.00010665,2]
[348353180,1736461859456,-500.0,0.00010665,2]
[348353181,1736461859465,-500.0,0.00010665,2]
[348353182,1736461859475,-936.21,0.00010665,2]
[348353183,1736461859484,-520.9,0.00010665,2]
[348353184,1736461859493,-580.2,0.00010665,2]
[348353185,1736461859502,-500.0,0.00010665,2]
[348353186,1736461859510,-852.47,0.00010665,2]
[348353187,1736461859519,-500.0,0.00010665,2]
[348353188,1736461859528,-500.0,0.00010665,2]
[348353189,1736461859536,-500.0,0.00010665,2]
[348353190,1736461859544,-500.0,0.00010665,2]
[348353191,1736461859553,-780.26,0.00010665,2]
[348353192,1736461859561,-500.0,0.00010665,2]
[348353193,1736461859570,-775.85,0.00010665,2]
[348353194,1736461859584,-1057.84,0.00010665,2]
[348353195,1736461859592,-301.00493881,0.00010665,2]
[348353196,1736461859600,-747.68,0.00010665,2]
[348353197,1736461859608,-500.0,0.00010665,2]
[348353198,1736461859617,-607.23,0.00010665,2]
[348353199,1736461859626,-500.0,0.00010665,2]
[348353200,1736461859636,-500.0,0.00010665,2]
[348353201,1736461859645,-1265.93,0.00010665,2]
[348353202,1736461859655,-656.86,0.00010665,2]
[348353203,1736461859664,-1105.45,0.00010665,2]
[348353204,1736461859674,-500.0,0.00010665,2]
[348353205,1736461859683,-500.0,0.00010665,2]
[348353206,1736461859868,-602.7,0.00010665,2]
[348353207,1736461859879,-500.0,0.00010665,2]
[348353208,1736461859891,-796.92,0.00010665,2]
[348353209,1736461859901,-500.0,0.00010665,2]
[348353210,1736461859910,-500.0,0.00010665,2]
[348353211,1736461859919,-500.0,0.00010665,2]
[348353212,1736461859929,-500.0,0.00010666,2]
[348353213,1736461859939,-500.0,0.00010666,2]
[348353214,1736461859948,-500.0,0.00010666,2]
[348353215,1736461859959,-500.0,0.00010666,2]
[348353216,1736461859969,-933.55,0.00010666,2]
[348353217,1736461859980,-500.0,0.00010666,2]
[348353218,1736461859990,-500.0,0.00010666,2]
[348353219,1736461860000,-500.0,0.00010666,2]
[348353220,1736461860010,-500.0,0.00010666,2]
[348353221,1736461860020,-500.0,0.00010666,2]
[348353222,1736461860030,-500.0,0.00010666,2]
[348353223,1736461860040,-1981.41,0.00010666,2]
[348353224,1736461860050,-342.65230508,0.00010666,2]
[348353225,1736461860061,-500.0,0.00010666,2]
[348353226,1736461860072,-500.0,0.00010666,2]
[348353227,1736461860082,-622.77,0.00010666,2]
[348353228,1736461860092,-500.0,0.00010666,2]
[348353229,1736461860102,-511.0,0.00010666,2]
[348353230,1736461860112,-500.0,0.00010666,2]
[348353231,1736461860121,-1958.38,0.00010666,2]
[348353232,1736461860131,-1236.19,0.00010666,2]
[348353233,1736461860141,-500.0,0.00010666,2]
[348353234,1736461860151,-500.0,0.00010666,2]
[348353235,1736461860161,-500.0,0.00010666,2]
[348353236,1736461860171,-500.0,0.00010666,2]
[348353237,1736461860180,-1824.58,0.00010666,2]
[348353238,1736461860189,-500.0,0.00010666,2]
[348353239,1736461860199,-500.0,0.00010666,2]
[348353240,1736461860208,-500.0,0.00010666,2]
[348353241,1736461860218,-500.0,0.00010666,2]
[348353242,1736461860231,-500.0,0.00010666,2]
[348353243,1736461860242,-500.0,0.00010666,2]
[348353244,1736461860252,-500.0,0.00010666,2]
[348353245,1736461860262,-500.0,0.00010666,2]
[348353246,1736461860272,-500.0,0.00010666,2]
[348353247,1736461860282,-592.57,0.00010666,2]
[348353248,1736461860291,-2146.58,0.00010666,2]
[348353249,1736461860300,-500.0,0.00010666,2]
[348353250,1736461860310,-500.0,0.00010666,2]
[348353251,1736461860320,-500.0,0.00010666,2]
[348353252,1736461860329,-500.0,0.00010666,2]
[348353253,1736461860338,-500.0,0.00010666,2]
[348353254,1736461860347,-2902.72,0.00010666,2]
[348353255,1736461860356,-500.0,0.00010666,2]
[348353256,1736461860366,-198.06413225,0.00010666,2]
[348353257,1736461860376,-511.12,0.00010666,2]
[348353258,1736461860385,-500.0,0.00010666,2]
[348353259,1736461860395,-500.0,0.00010666,2]
[348353260,1736461860405,-500.0,0.00010666,2]
[348353261,1736461860415,-90.44087478,0.00010666,2]
[348353262,1736461973595,-800.0,9.09e-05,2]
[348353263,1736461973617,-500.0,9.09e-05,2]
[348353264,1736461973639,-284.48,9.658e-05,2]
[348353265,1736461973661,-284.48,9.661e-05,2]
[348353266,1736461973684,-284.48,9.663e-05,2]
[348353267,1736461973706,-284.48,9.666e-05,2]
[348353268,1736461973729,-284.48,9.668e-05,2]
[348353269,1736461973752,-284.48,9.671e-05,2]
[348353270,1736461973778,-284.48,9.673e-05,2]
[348353271,1736461973800,-284.48,9.676e-05,2]
[348353272,1736461973824,-284.48,9.678e-05,2]
[348353273,1736461973846,-284.48,9.681e-05,2]
[348353274,1736461973868,-284.48,9.684e-05,2]
[348353275,1736461973893,-284.48,9.686e-05,2]
[348353276,1736461973915,-284.48,9.689e-05,2]
[348353277,1736461973937,-284.48,9.691e-05,2]
[348353278,1736461973960,-284.48,9.694e-05,2]
[348353279,1736461973984,-284.48,9.696e-05,2]
[348353280,1736461974006,-284.48,9.699e-05,2]
[348353281,1736461974031,-284.48,9.701e-05,2]
[348353282,1736461974054,-284.48,9.704e-05,2]
[348353283,1736461974079,-284.48,9.706e-05,2]
[348353284,1736461974104,-300.0,9.741e-05,2]
[348353285,1736461974126,-2500.0,9.741e-05,2]
[348353286,1736461974152,-2559.8444,9.742e-05,2]
[348353287,1736461974174,-1842.65,9.742e-05,2]
[348353288,1736461974195,-500.0,9.84e-05,2]
[348353289,1736461974217,-500.0,9.84e-05,2]
[348353290,1736461974239,-688.81,9.84e-05,2]
[348353291,1736461974261,-500.0,9.84e-05,2]
[348353292,1736461974283,-500.0,9.84e-05,2]
[348353293,1736461974304,-1754.21,9.84e-05,2]
[348353294,1736461974330,-500.0,9.84e-05,2]
[348353295,1736461974352,-966.84,9.84e-05,2]
[348353296,1736461974374,-500.0,9.84e-05,2]
[348353297,1736461974396,-500.0,9.84e-05,2]
[348353298,1736461974424,-500.0,9.84e-05,2]
[348353299,1736461974445,-500.0,9.84e-05,2]
[348353300,1736461974466,-500.0,9.84e-05,2]
[348353301,1736461974488,-1173.64,9.84e-05,2]
[348353302,1736461974509,-500.0,9.84e-05,2]
[348353303,1736461974533,-2288.45,9.84e-05,2]
[348353304,1736461974555,-614.89,9.84e-05,2]
[348353305,1736461974581,-500.0,9.84e-05,2]
[348353306,1736461974604,-500.0,9.84e-05,2]
[348353307,1736461974625,-500.0,9.84e-05,2]
[348353308,1736461974649,-500.0,9.84e-05,2]
[348353309,1736461974671,-500.0,9.84e-05,2]
[348353310,1736461974693,-500.0,9.84e-05,2]
[348353311,1736461974716,-500.0,9.84e-05,2]
[348353312,1736461974740,-851.88,9.84e-05,2]
[348353313,1736461974765,-4237.82,9.84e-05,2]
[348353314,1736461974792,-500.0,9.84e-05,2]
[348353315,1736461974819,-519.44,9.84e-05,2]
[348353316,1736461974841,-1275.49,9.84e-05,2]
[348353317,1736461974864,-3142.11,9.84e-05,2]
[348353318,1736461974887,-500.0,9.84e-05,2]
[348353319,1736461974909,-500.0,9.84e-05,2]
[348353320,1736461974934,-500.0,9.84e-05,2]
[348353321,1736461974959,-500.0,9.84e-05,2]
[348353322,1736461974984,-804.39,9.84e-05,2]
[348353323,1736461975010,-500.0,9.84e-05,2]
[348353324,1736461975032,-500.0,9.84e-05,2]
[348353325,1736461975054,-500.0,9.84e-05,2]
[348353326,1736461975081,-500.0,9.84e-05,2]
[348353327,1736461975102,-500.0,9.84e-05,2]
[348353328,1736461975124,-2603.65,9.84e-05,2]
[348353329,1736461975147,-2072.25,9.84e-05,2]
[348353330,1736461975171,-500.0,9.84e-05,2]
[348353331,1736461975195,-500.0,9.84e-05,2]
[348353332,1736461975219,-500.0,9.84e-05,2]
[348353333,1736461975240,-500.0,9.84e-05,2]
[348353334,1736461975265,-500.0,9.84e-05,2]
[348353335,1736461975288,-500.0,9.84e-05,2]
[348353336,1736461975311,-500.0,9.84e-05,2]
[348353337,1736461975337,-2985.94,9.84e-05,2]
[348353338,1736461975361,-506.63,9.84e-05,2]
[348353339,1736461975384,-500.0,9.84e-05,2]
[348353340,1736461975410,-1017.3,9.84e-05,2]
[348353341,1736461975431,-500.0,9.84e-05,2]
[348353342,1736461975453,-500.0,9.84e-05,2]
[348353343,1736461975478,-1521.56,9.84e-05,2]
[348353344,1736461975500,-500.0,9.84e-05,2]
[348353345,1736461975523,-500.0,9.841e-05,2]
[348353346,1736461975551,-615.87,9.841e-05,2]
[348353347,1736461975580,-500.0,9.841e-05,2]
[348353348,1736461975603,-762.96,9.841e-05,2]
[348353349,1736461975628,-530.66,9.841e-05,2]
[348353350,1736461975651,-500.0,9.841e-05,2]
[348353351,1736461975675,-4089.79,9.841e-05,2]
[348353352,1736461975697,-500.0,9.841e-05,2]
[348353353,1736461975721,-500.0,9.841e-05,2]
[348353354,1736461975743,-500.0,9.841e-05,2]
[348353355,1736461975766,-500.0,9.841e-05,2]
[348353356,1736461975789,-509.46,9.841e-05,2]
[348353357,1736461975820,-2157.67,9.841e-05,2]
[348353358,1736461975844,-500.0,9.841e-05,2]
[348353359,1736461975868,-500.0,9.841e-05,2]
[348353360,1736461975894,-755.75,9.841e-05,2]
[348353361,1736461975921,-150.129789,9.841e-05,2]
[348353362,1736461975951,-500.0,9.841e-05,2]
[348353363,1736461975975,-613.34,9.841e-05,2]
[348353364,1736461976000,-500.0,9.841e-05,2]
[348353365,1736461976026,-500.0,9.841e-05,2]
[348353366,1736461976050,-159.403829,9.841e-05,2]
[348353367,1736461976082,-2959.41,9.841e-05,2]
[348353368,1736461976106,-500.0,9.841e-05,2]
[348353369,1736461976129,-500.0,9.841e-05,2]
[348353370,1736461976152,-816.92,9.841e-05,2]
[348353371,1736461976176,-500.0,9.841e-05,2]
[348353372,1736461976201,-500.0,9.841e-05,2]
[348353373,1736461976226,-869.42,9.841e-05,2]
[348353374,1736461976251,-500.0,9.842e-05,2]
[348353375,1736461976274,-710.39,9.842e-05,2]
[348353376,1736461976297,-500.0,9.842e-05,2]
[348353377,1736461976322,-519.74,9.842e-05,2]